bitfinex-derivatives/quotes_SOLF0:USTF0_20250130
["timestamp","ask_amount","ask_price","bid_price","bid_amount"]
[1738236421238,0.03129896,240.93,240.89,0.02877539]
[1738236421439,0.03129896,240.93,240.92,4.1513]
[1738236428641,0.03129896,240.93,240.92,11.29248846]
[1738236429146,4.1498,241.02,240.99,4.1501]
[1738236429443,2.6639,241.05,240.99,7.14118846]
[1738236430345,0.02754732,241.04,241.0,0.03115271]
[1738236432141,4.1495,241.03,241.0,0.03115271]
[1738236434945,0.02754732,241.04,241.0,0.03115271]
[1738236435150,4.1498,241.01,241.0,0.03115271]
[1738236436646,0.02754732,241.04,240.88,11.15610303]
[1738236436647,11.15610303,241.03,240.88,11.15610303]
[1738236436950,4.1505,240.97,240.91,4.1515]
[1738236437850,0.03122599,240.96,240.92,0.02729771]
[1738236440054,4.18192599,240.96,240.92,0.02729771]
[1738236441254,0.03122599,240.96,240.92,4.17859771]
[1738236441750,0.03122599,240.96,240.92,0.02729771]
[1738236441957,4.1512,240.93,240.92,0.02729771]
[1738236445961,11.15610303,240.93,240.79,11.15610303]
[1738236446960,4.1523,240.87,240.79,15.30970303]
[1738236447157,0.02643554,240.88,240.84,0.03057839]
[1738236448061,4.1525,240.85,240.84,0.03057839]
[1738236452369,4.1522,240.87,240.84,0.03057839]
[1738236452573,0.02643554,240.88,240.84,0.03057839]
[1738236453475,0.02643554,240.88,240.87,7.15017402]
[1738236457078,4.17863554,240.88,240.84,0.03057839]
[1738236457978,4.1522,240.87,240.84,0.03057839]
[1738236458679,0.02643554,240.88,240.85,7.15017402]
[1738236458981,0.02643554,240.88,240.87,7.15017402]
[1738236460982,0.02643554,240.88,240.85,7.15017402]
[1738236462086,4.1522,240.87,240.85,7.15017402]
[1738236463795,4.1524,240.86,240.85,7.15017402]
[1738236467688,4.1524,240.86,240.84,0.03057839]
[1738236467888,4.1525,240.85,240.84,0.03057839]
[1738236470587,0.02643554,240.88,240.84,0.03057839]
[1738236470790,4.1524,240.86,240.84,0.03057839]
[1738236471090,4.1524,240.86,240.84,4.18327839]
[1738236471685,0.02643554,240.88,240.84,0.03057839]
[1738236471886,4.17863554,240.88,240.85,4.1525]
[1738236472383,4.17863554,240.88,240.84,0.03057839]
[1738236472384,0.02643554,240.88,240.87,7.15017402]
[1738236472582,0.02643554,240.88,240.87,11.30237402]
[1738236472991,0.02643554,240.88,240.85,7.15017402]
[1738236473291,4.1524,240.86,240.84,0.03057839]
[1738236473686,0.02643554,240.88,240.84,0.03057839]
[1738236473890,4.1522,240.87,240.84,0.03057839]
[1738236474484,4.1524,240.86,240.84,0.03057839]
[1738236475092,4.1525,240.85,240.84,0.03057839]
[1738236475289,0.02643554,240.88,240.84,0.03057839]
[1738236475492,7.15017402,240.87,240.84,0.03057839]
[1738236475994,4.1524,240.86,240.84,0.03057839]
[1738236476684,4.1525,240.85,240.84,0.03057839]
[1738236477993,4.1524,240.86,240.84,0.03057839]
[1738236478595,11.30237402,240.87,240.84,0.03057839]
[1738236480898,7.15017402,240.87,240.84,0.03057839]
[1738236483200,0.02643554,240.88,240.85,4.1525]
[1738236483999,0.02643554,240.88,240.86,4.1522]
[1738236484597,0.02643554,240.88,240.84,0.03057839]
[1738236484892,0.02643554,240.88,240.87,4.1522]
[1738236486295,0.02643554,240.88,240.84,0.03057839]
[1738236486296,0.02643554,240.88,240.85,4.1524]
[1738236487400,0.02643554,240.88,240.84,0.03057839]
[1738236487700,0.02643554,240.88,240.86,4.1524]
[1738236488897,0.02643554,240.88,240.85,4.1525]
[1738236489502,0.02643554,240.88,240.86,4.1523]
[1738236489902,0.02643554,240.88,240.84,0.03057839]
[1738236490103,0.02643554,240.88,240.85,4.1524]
[1738236490402,0.02643554,240.88,240.84,0.03057839]
[1738236491104,0.02643554,240.88,240.85,4.1524]
[1738236494401,0.02643554,240.88,240.84,4.18327839]
[1738236494799,0.02643554,240.88,240.84,0.03057839]
[1738236495003,0.02643554,240.88,240.85,4.1525]
[1738236498113,7.15017402,240.86,240.84,0.03057839]
[1738236499208,0.02643554,240.88,240.84,0.03057839]
[1738236499209,7.17660956,240.88,240.84,0.03057839]
[1738236499405,0.02643554,240.88,240.84,0.03057839]
[1738236500206,0.02643554,240.88,240.85,4.1525]
[1738236501709,0.02643554,240.88,240.84,4.18327839]
[1738236513015,0.02643554,240.88,240.85,4.1525]
[1738236514009,0.02643554,240.88,240.87,4.1522]
[1738236519317,0.02643554,240.88,240.86,4.1523]
[1738236520618,4.17843554,240.88,240.84,4.18317839]
[1738236522220,4.1522,240.87,240.84,0.03057839]
[1738236524124,4.1522,240.87,240.84,4.18327839]
[1738236528220,11.30237402,240.87,240.84,4.18327839]
[1738236530031,7.15017402,240.87,240.84,0.03057839]
[1738236530331,4.1524,240.86,240.84,0.03057839]
[1738236530928,11.30267402,240.85,240.84,0.03057839]
[1738236541039,11.30267402,240.85,240.84,7.839e-05]
[1738236554857,7.15017402,240.85,240.84,7.839e-05]
[1738236555054,7.15017402,240.87,240.84,7.839e-05]
[1738236555557,7.15017402,240.87,240.84,4.15277839]
[1738236557857,0.02643554,240.88,240.84,4.15277839]
[1738236558057,0.02643554,240.88,240.84,7.15025241]
[1738236558256,0.02643554,240.88,240.84,7.839e-05]
[1738236558557,7.15017402,240.87,240.84,7.839e-05]
[1738236558758,11.30247402,240.87,240.84,7.839e-05]
[1738236558949,7.15017402,240.87,240.84,7.839e-05]
[1738236559258,4.1524,240.86,240.84,7.839e-05]
[1738236559557,7.15017402,240.87,240.84,7.839e-05]
[1738236559758,4.1525,240.85,240.84,7.839e-05]
[1738236559960,11.30267402,240.85,240.84,7.839e-05]
[1738236563566,4.1525,240.85,240.84,7.839e-05]
[1738236564064,7.15017402,240.87,240.84,7.839e-05]
[1738236564264,4.1522,240.87,240.84,7.839e-05]
[1738236564464,0.02643554,240.88,240.84,7.839e-05]
[1738236565057,4.17863554,240.88,240.84,4.15277839]
[1738236565260,0.02643554,240.88,240.84,4.15277839]
[1738236566068,4.1522,240.87,240.84,4.15277839]
[1738236566263,4.1522,240.87,240.84,7.839e-05]
[1738236567162,11.30237402,240.87,240.84,7.839e-05]
[1738236567660,4.1525,240.85,240.84,7.839e-05]
[1738236568564,11.30267402,240.85,240.84,7.839e-05]
[1738236572562,4.1538,240.78,240.74,4.69685571]
[1738236572757,11.30397402,240.78,240.74,4.69685571]
[1738236573262,4.154,240.77,240.74,4.69685571]
[1738236573966,0.02748979,240.78,240.75,4.1541]
[1738236574465,0.02748979,240.78,240.74,11.84702973]
[1738236576968,0.02748979,240.78,240.74,7.15017402]
[1738236577667,0.02748979,240.78,240.72,7.15017402]
[1738236581871,7.17766381,240.78,240.7,8.54317402]
[1738236582074,7.15017402,240.76,240.68,7.15017402]
[1738236582263,7.15017402,240.74,240.66,7.15017402]
[1738236582571,7.15017402,240.78,240.7,7.15017402]
[1738236582866,0.02861622,240.72,240.7,7.15017402]
[1738236591279,0.02861622,240.72,240.71,4.1549]
[1738236591676,7.15017402,240.82,240.7,7.15017402]
[1738236591881,7.15017402,240.82,240.79,4.1536]
[1738236592183,7.15017402,240.82,240.75,7.15017402]
[1738236592676,7.15017402,240.84,240.75,7.15017402]
[1738236592877,0.03156697,240.81,240.78,4.1537]
[1738236593270,0.03156697,240.81,240.76,0.02918011]
[1738236594178,0.03156697,240.81,240.77,4.1539]
[1738236594982,0.03156697,240.81,240.78,4.1537]
[1738236595578,0.03156697,240.81,240.79,4.1536]
[1738236595781,0.03156697,240.81,240.77,7.15017402]
[1738236595981,0.03156697,240.81,240.76,0.02918011]
[1738236596180,0.03156697,240.81,240.77,4.1539]
[1738236596885,4.18476697,240.81,240.77,4.1539]
[1738236601092,4.1534,240.8,240.76,4.18328011]
[1738236601390,7.15017402,240.8,240.76,0.02918011]
[1738236601888,4.1539,240.77,240.76,0.02918011]
[1738236606094,4.1546,240.73,240.67,11.30577402]
[1738236607096,0.03172496,240.72,240.67,11.30577402]
[1738236607302,4.155,240.71,240.66,4.1558]
[1738236608297,4.1551,240.7,240.66,4.1558]
[1738236610600,4.1554,240.69,240.65,11.30607402]
[1738236612005,4.1557,240.67,240.65,7.15017402]
[1738236612902,7.18189898,240.72,240.65,7.15017402]
[1738236613302,7.18189898,240.72,240.64,4.156]
[1738236613504,4.1555,240.68,240.64,4.156]
[1738236617411,7.15017402,240.7,240.63,7.15017402]
[1738236617611,4.1558,240.67,240.63,7.15017402]
[1738236618014,7.15017402,240.68,240.61,7.15017402]
[1738236618208,0.03172496,240.72,240.59,4.64345943]
[1738236618209,7.15017402,240.66,240.59,11.79363345]
[1738236618604,4.1562,240.64,240.59,15.95053345]
[1738236618811,4.1562,240.64,240.59,11.79363345]
[1738236619010,7.15017402,240.66,240.59,11.79363345]
[1738236619310,0.02967009,240.67,240.61,7.15017402]
[1738236619512,0.02967009,240.67,240.63,7.15017402]
[1738236620007,0.02967009,240.67,240.65,4.1559]
[1738236620212,0.02967009,240.67,240.63,7.15017402]
[1738236620415,0.02967009,240.67,240.66,4.1558]
[1738236621015,7.15017402,240.76,240.71,4.1548]
[1738236621714,11.30437402,240.76,240.71,4.1548]
[1738236621911,7.15017402,240.76,240.69,4.1551]
[1738236622110,7.17945127,240.76,240.71,0.02869927]
[1738236622617,7.17945127,240.76,240.71,4.18359927]
[1738236623414,7.17945127,240.76,240.72,4.1547]
[1738236623817,7.17945127,240.76,240.71,0.02869927]
[1738236624005,0.02927725,240.76,240.73,4.1544]
[1738236624204,0.02927725,240.76,240.71,0.02869927]
[1738236624816,4.18347725,240.76,240.71,0.02869927]
[1738236625114,7.17945127,240.76,240.71,0.02869927]
[1738236625614,4.1544,240.75,240.71,0.02869927]
[1738236625914,7.17945127,240.76,240.71,0.02869927]
[1738236626113,4.1543,240.75,240.71,0.02869927]
[1738236628414,7.17945127,240.76,240.71,0.02869927]
[1738236628615,11.33355127,240.76,240.71,4.18359927]
[1738236629314,7.17945127,240.76,240.71,4.18359927]
[1738236629516,4.1543,240.75,240.71,4.18359927]
[1738236629815,7.17945127,240.76,240.71,0.02869927]
[1738236630020,4.1545,240.74,240.71,0.02869927]
[1738236630213,7.17945127,240.76,240.71,0.02869927]
[1738236631913,7.15017402,240.74,240.71,0.02869927]
[1738236633215,4.1547,240.73,240.71,0.02869927]
[1738236633918,4.1545,240.74,240.71,4.18349927]
[1738236634623,7.17945127,240.76,240.71,0.02869927]
[1738236634918,4.1547,240.73,240.71,0.02869927]
[1738236638620,4.1543,240.75,240.71,0.02869927]
[1738236638919,4.1543,240.75,240.73,4.1546]
[1738236639120,0.02927725,240.76,240.73,4.1546]
[1738236641324,0.02927725,240.76,240.71,7.17887329]
[1738236641523,0.02927725,240.76,240.73,4.1544]
[1738236642126,0.02927725,240.76,240.74,4.1543]
[1738236642924,0.02927725,240.76,240.73,4.1546]
[1738236645429,0.02927725,240.76,240.74,4.1543]
[1738236647024,0.02927725,240.76,240.75,4.1543]
[1738236647226,0.02927725,240.76,240.75,11.30447402]
[1738236647425,0.02927725,240.76,240.75,4.1543]
[1738236649043,7.15017402,240.85,240.8,4.1534]
[1738236649829,4.1527,240.84,240.8,4.1534]
[1738236650225,4.1532,240.81,240.8,0.02918998]
[1738236651030,11.30317402,240.83,240.8,0.02918998]
[1738236651231,7.15017402,240.83,240.8,0.02918998]
[1738236651425,0.03104108,240.84,240.8,4.18248998]
[1738236651922,0.03104108,240.84,240.8,0.02918998]
[1738236652722,0.03104108,240.84,240.8,7.179364]
[1738236653334,0.03104108,240.84,240.83,4.1529]
[1738236653734,0.03104108,240.84,240.8,7.179364]
[1738236654033,0.03104108,240.84,240.81,4.1531]
[1738236655930,4.1529,240.83,240.8,0.02918998]
[1738236657133,4.1531,240.82,240.8,0.02918998]
[1738236657633,0.03104108,240.84,240.8,0.02918998]
[1738236657834,4.1529,240.83,240.8,0.02918998]
[1738236658230,0.03104108,240.84,240.8,0.02918998]
[1738236658424,0.03104108,240.84,240.81,4.1531]
[1738236660237,4.18374108,240.84,240.8,4.18258998]
[1738236660638,0.03104108,240.84,240.8,0.02918998]
[1738236660842,4.153,240.82,240.8,0.02918998]
[1738236661837,4.1532,240.81,240.8,0.02918998]
[1738236670742,11.30317402,240.83,240.8,0.02918998]
[1738236672145,4.153,240.83,240.8,0.02918998]
[1738236672338,4.153,240.83,240.8,4.18248998]
[1738236672740,4.18374108,240.84,240.8,4.18248998]
[1738236672940,0.03104108,240.84,240.81,4.1531]
[1738236673546,0.03104108,240.84,240.8,0.02918998]
[1738236673749,0.03104108,240.84,240.8,4.18258998]
[1738236674446,4.1529,240.83,240.8,0.02918998]
[1738236676949,0.03104108,240.84,240.8,0.02918998]
[1738236677148,4.1532,240.82,240.8,0.02918998]
[1738236678746,4.1529,240.83,240.8,0.02918998]
[1738236679240,0.03104108,240.84,240.8,0.02918998]
[1738236679448,4.18374108,240.84,240.8,4.18248998]
[1738236679751,0.03104108,240.84,240.8,7.179364]
[1738236680350,0.03104108,240.84,240.83,4.1529]
[1738236684359,4.1517,240.9,240.87,4.1521]
[1738236687356,7.17810127,240.91,240.86,0.02624303]
[1738236688259,0.02792725,240.91,240.87,7.15017402]
[1738236688557,0.02792725,240.91,240.89,7.15017402]
[1738236688758,0.02792725,240.91,240.9,4.1517]
[1738236692152,4.1505,240.97,240.89,7.15017402]
[1738236692358,4.1505,240.97,240.94,4.151]
[1738236692562,7.15017402,241.05,240.96,7.15017402]
[1738236692756,4.1495,241.03,240.98,7.15017402]
[1738236692952,7.15017402,241.05,240.98,7.15017402]
[1738236693354,0.03024788,241.04,240.99,0.02630028]
[1738236694063,4.1495,241.03,240.99,0.02630028]
[1738236694564,0.03024788,241.04,240.99,0.02630028]
[1738236694869,0.03024788,241.04,241.0,7.15017402]
[1738236695659,0.03024788,241.04,240.99,0.02630028]
[1738236697164,0.03024788,241.04,240.99,4.17640028]
[1738236697165,4.1496,241.03,240.99,4.17640028]
[1738236699862,4.1496,241.03,241.0,4.1499]
[1738236700165,4.1496,241.03,240.99,0.02630028]
[1738236700565,4.1496,241.03,240.99,4.17640028]
[1738236701268,0.03024788,241.04,240.99,0.02630028]
[1738236701465,4.17954788,241.04,241.0,4.1499]
[1738236701959,4.17954788,241.04,241.01,4.1498]
[1738236703866,4.17954788,241.04,241.0,11.30007402]
[1738236705770,0.03024788,241.04,241.0,7.15017402]
[1738236706576,0.03024788,241.04,241.01,4.1496]
[1738236707465,7.15017402,241.17,241.02,7.15017402]
[1738236707665,7.15017402,241.17,241.1,7.15017402]
[1738236707862,7.15017402,241.13,241.06,7.15017402]
[1738236708272,4.1486,241.08,241.06,7.15017402]
[1738236708570,4.1486,241.08,241.04,11.29937402]
[1738236708771,4.1486,241.08,241.05,0.02716055]
[1738236708971,0.02708383,241.09,241.05,0.02716055]
[1738236709168,4.1488,241.07,241.05,0.02716055]
[1738236709668,4.1489,241.06,241.05,0.02716055]
[1738236720584,4.1487,241.08,241.05,0.02716055]
[1738236721078,0.02708383,241.09,241.06,7.15017402]
[1738236721984,0.02708383,241.09,241.08,11.29877402]
[1738236725787,6.93807679,241.36,241.35,3.86366985]
[1738236726089,26.06620187,241.39,241.35,10.01017402]
[1738236726383,114.83502622,241.4,241.38,11.29357402]
[1738236726786,114.83502622,241.4,241.38,7.15017402]
[1738236728389,114.83502622,241.4,241.38,11.29347402]
[1738236728592,32.72947265,241.4,241.38,11.29347402]
[1738236728887,2.7377,241.48,241.43,4.1425]
[1738236729193,2.7377,241.48,241.47,7.15017402]
[1738236729390,4.1407,241.54,241.47,7.15017402]
[1738236729694,7.15017402,241.52,241.43,7.15017402]
[1738236729891,7.15017402,241.5,241.41,7.15017402]
[1738236730190,1.3163,241.49,241.45,0.0305198]
[1738236730388,4.142,241.47,241.41,7.15017402]
[1738236730794,1.3163,241.49,241.43,7.15017402]
[1738236730989,5.4579,241.49,241.41,7.15017402]
[1738236731292,7.15017402,241.44,241.34,142.4962313]
[1738236731493,11.29267402,241.44,241.43,0.02759716]
[1738236731792,7.15017402,241.46,241.37,7.15017402]
[1738236732586,7.15017402,241.38,241.17,7.15017402]
[1738236732789,7.15017402,241.28,241.25,0.03000406]
[1738236733095,7.15017402,241.28,241.19,7.15017402]
[1738236733295,7.15017402,241.28,241.24,0.02789126]
[1738236733691,0.02880008,241.29,241.24,0.02789126]
[1738236735593,4.1462,241.22,241.08,11.13188809]
[1738236735993,4.1462,241.22,241.13,4.1477]
[1738236736792,0.02885817,241.2,241.15,0.0280619]
[1738236737489,11.16074626,241.2,241.15,0.0280619]
[1738236737686,15.27898809,241.17,241.15,0.0280619]
[1738236737897,11.13188809,241.17,240.99,12.53398809]
[1738236738294,11.13188809,241.17,241.04,4.1491]
[1738236738295,4.148,241.12,241.04,4.1491]
[1738236738498,11.13188809,241.17,241.04,4.1491]
[1738236738698,11.13188809,241.17,240.99,12.53398809]
[1738236738899,4.1784966,241.1,241.06,0.02725418]
[1738236739093,0.0301966,241.1,241.06,0.02725418]
[1738236739296,4.1486,241.08,241.06,0.02725418]
[1738236739793,0.0301966,241.1,241.06,0.02725418]
[1738236740000,4.1784966,241.1,241.06,0.02725418]
[1738236741600,0.0301966,241.1,241.06,0.02725418]
[1738236742897,0.0301966,241.1,241.06,4.17615418]
[1738236743902,0.0301966,241.1,241.06,0.02725418]
[1738236744096,0.0301966,241.1,241.09,4.1484]
[1738236750703,11.13188809,241.23,241.14,4.1474]
[1738236751403,11.13188809,241.23,241.16,4.1472]
[1738236752009,0.03033052,241.22,241.17,0.03151654]
[1738236754099,0.03033052,241.22,241.19,4.1465]
[1738236754701,0.03033052,241.22,241.17,0.03151654]
[1738236755002,0.03033052,241.22,241.2,4.1465]
[1738236756000,0.03033052,241.22,241.17,0.03151654]
[1738236756405,4.1468,241.18,241.17,0.03151654]
[1738236758105,11.13188809,241.2,241.05,11.13188809]
[1738236758610,4.1475,241.15,241.1,4.1481]
[1738236759010,4.1475,241.15,241.05,11.13188809]
[1738236759211,4.17730301,241.15,241.1,0.03004303]
[1738236759410,0.02980301,241.15,241.12,4.1477]
[1738236759710,0.02980301,241.15,241.1,0.03004303]
[1738236761117,0.02980301,241.15,241.12,4.1477]
[1738236762920,0.02980301,241.15,241.13,4.1477]
[1738236764313,0.02980301,241.15,241.11,4.148]
[1738236764515,0.02980301,241.15,241.1,0.03004303]
[1738236765113,0.02980301,241.15,241.11,4.148]
[1738236765314,0.02980301,241.15,241.1,0.03004303]
[1738236766123,0.02980301,241.15,241.14,4.1475]
[1738236778521,0.02980301,241.15,241.11,4.148]
[1738236778727,0.02980301,241.15,241.1,0.03004303]
[1738236779026,4.1478,241.13,241.1,0.03004303]
[1738236779229,4.1478,241.13,241.1,4.17824303]
[1738236779428,7.1314987,241.14,241.1,0.03004303]
[1738236779722,11.2790987,241.14,241.1,0.03004303]
[1738236780428,7.1314987,241.14,241.1,0.03004303]
[1738236780626,11.14709044,241.13,241.1,0.03004303]
[1738236780827,11.14709044,241.13,241.04,9.05940159]
[1738236781029,11.14709044,241.1,241.03,141.29229404]
[1738236781428,4.1486,241.08,241.03,141.29229404]
[1738236781628,11.14709044,241.1,241.03,141.29229404]
[1738236782129,0.03099033,241.09,241.04,0.03112552]
[1738236783227,4.17959033,241.09,241.04,0.03112552]
[1738236783428,0.03099033,241.09,241.04,0.03112552]
[1738236783830,4.17939033,241.09,241.05,4.1491]
[1738236784130,0.03099033,241.09,241.04,0.03112552]
[1738236786230,4.1488,241.07,241.04,0.03112552]
[1738236786627,4.17959033,241.09,241.04,4.18032552]
[1738236786830,0.03099033,241.09,241.04,4.18032552]
[1738236788233,4.1486,241.08,241.04,4.18032552]
[1738236788837,4.1487,241.07,241.04,4.18032552]
[1738236789338,0.03099033,241.09,241.04,0.03112552]
[1738236791637,0.03099033,241.09,241.05,4.149]
[1738236791836,0.03099033,241.09,241.04,0.03112552]
[1738236792437,0.03099033,241.09,241.05,4.149]
[1738236792634,0.03099033,241.09,241.04,0.03112552]
[1738236792937,4.1491,241.05,241.04,0.03112552]
[1738236794041,0.03099033,241.09,241.04,0.03112552]
[1738236797542,0.03099033,241.09,241.05,4.149]
[1738236797737,0.03099033,241.09,241.04,0.03112552]
[1738236799045,4.17939033,241.09,241.06,4.1488]
[1738236800843,4.149,241.06,241.04,0.03112552]
[1738236801343,11.14709044,241.08,241.04,0.03112552]
[1738236802140,4.1491,241.05,241.04,0.03112552]
[1738236808546,11.28775617,241.05,241.04,0.03112552]
[1738236813243,4.1504,240.98,240.93,7.13865617]
[1738236813447,7.13865617,241.02,240.95,7.13865617]
[1738236813746,7.13865617,241.02,241.0,4.1499]
[1738236814252,7.13865617,241.06,240.97,7.13865617]
[1738236814547,7.13865617,241.06,240.92,78.60144239]
[1738236814548,0.02988093,241.03,240.99,7.16592924]
[1738236815053,0.02988093,241.03,241.02,4.1494]
[1738236822257,4.1482,241.1,241.07,4.1487]
[1738236823054,11.28665617,241.12,241.08,4.1485]
[1738236823358,0.03059775,241.11,241.06,0.03018948]
[1738236823558,7.13865617,241.1,241.06,0.03018948]
[1738236823758,4.1484,241.09,241.06,4.17898948]
[1738236823959,7.13865617,241.1,241.06,4.17898948]
[1738236824161,7.13865617,241.1,241.07,4.1487]
[1738236825055,11.28685617,241.1,241.07,4.1487]
[1738236826255,11.28685617,241.1,241.06,0.03018948]
[1738236826256,4.1487,241.07,241.06,0.03018948]
[1738236827059,4.1496,241.02,240.98,4.1503]
[1738236827261,7.13865617,241.02,240.96,141.29229404]
[1738236827662,7.13865617,241.0,240.96,141.29229404]
[1738236828066,7.16592197,241.0,240.96,141.32095963]
[1738236828365,7.16592197,241.0,240.96,0.02866559]
[1738236829867,7.16592197,241.0,240.96,4.17916559]
[1738236830266,0.0272658,241.0,240.96,4.17916559]
[1738236830667,0.0272658,241.0,240.97,4.1504]
[1738236831966,4.1772658,241.0,240.96,4.17926559]
[1738236832164,11.31592197,241.0,240.96,4.17926559]
[1738236835069,4.1502,240.99,240.96,4.17926559]
[1738236838168,7.13865617,240.98,240.96,0.02866559]
[1738236839067,7.16592197,241.0,240.96,0.02866559]
[1738236839866,4.1503,240.99,240.96,0.02866559]
[1738236840261,4.1503,240.99,240.96,4.17926559]
[1738236840463,0.0272658,241.0,240.96,0.02866559]
[1738236841375,0.0272658,241.0,240.99,4.1501]
[1738236844273,0.0272658,241.0,240.99,11.28875617]
[1738236846670,11.28715617,241.09,240.99,7.13865617]
[1738236846865,7.13865617,241.09,241.01,7.13865617]
[1738236847567,4.1488,241.07,241.04,4.1492]
[1738236847771,4.1488,241.07,241.01,7.13865617]
[1738236848072,4.1488,241.07,241.03,0.02679978]
[1738236848274,0.02982586,241.08,241.03,0.02679978]
[1738236848472,4.17842586,241.08,241.03,0.02679978]
[1738236849874,4.17842586,241.08,241.04,4.1492]
[1738236850573,0.02982586,241.08,241.03,0.02679978]
[1738236850873,0.02982586,241.08,241.06,4.1489]
[1738236851069,0.02982586,241.08,241.05,7.13865617]
[1738236851274,0.02982586,241.08,241.07,4.1487]
[1738236868887,0.02982586,241.08,241.07,11.28735617]
[1738236872990,2.586e-05,241.08,241.07,11.28735617]
[1738236881994,2.586e-05,241.08,241.07,4.1487]
[1738236886589,4.1468,241.19,241.14,4.1474]
[1738236886892,4.1468,241.19,241.13,7.13865617]
[1738236887294,5.4975,241.21,241.13,7.13865617]
[1738236887498,1.351,241.21,241.17,7.13865617]
[1738236887686,0.02898754,241.19,241.17,7.13865617]
[1738236887893,0.02898754,241.19,241.18,4.1467]
[1738236892298,0.02898754,241.19,241.17,7.13865617]
[1738236892499,0.02898754,241.19,241.17,11.28565617]
[1738236894805,0.02898754,241.19,241.17,7.13865617]
[1738236895104,0.02898754,241.19,241.15,11.31613294]
[1738236895397,0.02898754,241.19,241.15,7.16893294]
[1738236896299,0.02898754,241.19,241.17,7.13865617]
[1738236896902,0.02898754,241.19,241.18,4.1468]
[1738236903404,7.13865617,241.32,241.17,7.13865617]
[1738236903604,7.13865617,241.32,241.24,7.13865617]
[1738236904007,7.13865617,241.32,241.25,4.1455]
[1738236904507,0.03178638,241.31,241.26,0.02787534]
[1738236904709,4.1448,241.3,241.26,0.02787534]
[1738236905006,0.03178638,241.31,241.26,7.16653151]
[1738236905199,7.13865617,241.3,241.26,0.02787534]
[1738236905398,0.03178638,241.31,241.16,81.31856811]
[1738236905399,7.13865617,241.28,241.18,7.13865617]
[1738236905707,7.13865617,241.23,241.16,81.31856811]
[1738236906001,1.3853,241.22,241.16,81.31856811]
[1738236906705,0.02706243,241.21,241.17,0.02898416]
[1738236908110,0.02706243,241.21,241.19,4.1467]
[1738236908908,0.02706243,241.21,241.2,4.1465]
[1738236909705,0.02706243,241.21,241.2,11.28515617]
[1738236912517,0.02706243,241.21,241.18,7.13865617]
[1738236912817,7.1657186,241.21,241.17,0.02898416]
[1738236913109,4.147,241.18,241.12,11.28645617]
[1738236913708,4.147,241.18,241.13,4.1477]
[1738236914115,4.147,241.18,241.13,4.17463159]
[1738236914615,0.02706243,241.21,241.16,7.13865617]
[1738236914806,4.1446,241.31,241.29,7.13865617]
[1738236915008,7.13865617,241.37,241.29,7.13865617]
[1738236915208,1.4389,241.36,241.29,7.13865617]
[1738236915619,4.1441,241.34,241.29,7.13865617]
[1738236915819,1.3924,241.33,241.3,0.02647809]
[1738236920122,4.1445,241.32,241.3,0.02647809]
[1738236920420,1.3924,241.33,241.3,0.02647809]
[1738236921426,1.3924,241.33,241.18,11.12675889]
[1738236922123,1.3924,241.33,241.21,11.12675889]
[1738236922526,0.02741965,241.29,241.25,0.02613205]
[1738236922725,4.17241965,241.29,241.25,4.17163205]
[1738236922926,0.02741965,241.29,241.25,0.02613205]
[1738236923826,4.1451,241.28,241.25,0.02613205]
[1738236925427,0.02741965,241.29,241.25,0.02613205]
[1738236926729,0.02741965,241.29,241.26,4.1454]
[1738236928330,4.17241965,241.29,241.26,4.1454]
[1738236929227,0.02741965,241.29,241.26,4.1454]
[1738236929532,0.02741965,241.29,241.27,4.1452]
[1738236929826,0.02741965,241.29,241.25,0.02613205]
[1738236930031,4.17241965,241.29,241.25,0.02613205]
[1738236930330,0.02741965,241.29,241.25,4.17173205]
[1738236931229,4.1451,241.28,241.25,4.17173205]
[1738236931733,0.02741965,241.29,241.25,0.02613205]
[1738236931935,4.1455,241.26,241.25,0.02613205]
[1738236935235,4.1453,241.27,241.25,0.02613205]
[1738236935534,0.02741965,241.29,241.25,0.02613205]
[1738236936934,4.1452,241.28,241.25,4.17163205]
[1738236939332,0.02741965,241.29,241.25,0.02613205]
[1738236939333,4.1455,241.26,241.25,0.02613205]
[1738236940335,4.1455,241.26,241.16,19.84912858]
[1738236940336,11.12675889,241.26,241.16,19.84912858]
[1738236940535,7.13235834,241.17,241.16,9.05603295]
[1738236940841,7.13235834,241.17,241.15,4.1473]
[1738236941031,7.13235834,241.19,241.15,4.1473]
[1738236941439,7.16382687,241.19,241.15,4.17805238]
[1738236942641,0.03146853,241.19,241.15,4.17805238]
[1738236942839,0.03146853,241.19,241.15,0.03075238]
[1738236943140,0.03146853,241.19,241.17,4.1469]
[1738236943938,0.03146853,241.19,241.18,4.1469]
[1738236948134,11.1414397,241.35,241.24,4.1457]
[1738236948342,11.1414397,241.35,241.23,11.1414397]
[1738236948541,4.1449,241.3,241.2,11.1414397]
[1738236948741,11.1414397,241.35,241.24,4.1457]